[Event "*** SCC Grand Prix: Titled Tuesday Blitz"]
[Site "Chess.com"]
[Date "2020.10.06"]
[Round "6"]
[White "Nikolaj_6"]
[Black "Ladislav1969"]
[Result "1-0"]
[WhiteElo "2536"]
[BlackElo "2364"]
[TimeControl "180+1"]
[EndTime "11:07:39 PDT"]
[Termination "Nikolaj_6 won on time"]

1. d4 {[%clk 0:03:00.9]} 1... Nf6 {[%clk 0:02:59.9]} 2. Bf4 {[%clk 0:03:01.2]}
2... g6 {[%clk 0:02:59.6]} 3. Nf3 {[%clk 0:03:00.3]} 3... d5 {[%clk 0:02:58.6]}
4. h3 {[%clk 0:03:00.1]} 4... Bg7 {[%clk 0:02:58.2]} 5. c4 {[%clk 0:03:00.3]}
5... c5 {[%clk 0:02:46.2]} 6. dxc5 {[%clk 0:02:54.7]} 6... Qa5+ {[%clk
0:02:41.7]} 7. Nbd2 {[%clk 0:02:51.7]} 7... dxc4 {[%clk 0:02:17.1]} 8. Rc1
{[%clk 0:02:44.6]} 8... Be6 {[%clk 0:02:16.2]} 9. e3 {[%clk 0:02:36.1]} 9... Ne4
{[%clk 0:02:01.9]} 10. Bxc4 {[%clk 0:02:30.4]} 10... Bxb2 {[%clk 0:01:54.3]} 11.
Bxe6 {[%clk 0:02:12.4]} 11... Bxc1 {[%clk 0:01:51]} 12. Qxc1 {[%clk 0:02:12]}
12... fxe6 {[%clk 0:01:46.2]} 13. O-O {[%clk 0:02:10.5]} 13... Nxd2 {[%clk
0:01:42.9]} 14. Nxd2 {[%clk 0:02:10]} 14... O-O {[%clk 0:01:31.8]} 15. Nb3
{[%clk 0:02:09.1]} 15... Qb4 {[%clk 0:01:18.3]} 16. Rd1 {[%clk 0:01:59.7]} 16...
Nc6 {[%clk 0:01:18.2]} 17. Nd4 {[%clk 0:01:37.9]} 17... Rac8 {[%clk 0:00:36.3]}
18. Nxe6 {[%clk 0:01:32.6]} 18... Rf5 {[%clk 0:00:36.2]} 19. a3 {[%clk
0:01:12.9]} 19... Qe4 {[%clk 0:00:30.6]} 20. Nd4 {[%clk 0:00:55]} 20... e5
{[%clk 0:00:28.5]} 21. Nxf5 {[%clk 0:00:53.8]} 21... gxf5 {[%clk 0:00:19.3]} 22.
Bg3 {[%clk 0:00:48.1]} 22... Rf8 {[%clk 0:00:13.1]} 23. f3 {[%clk 0:00:46.6]}
23... Qa4 {[%clk 0:00:10.5]} 24. Rd6 {[%clk 0:00:42.2]} 24... Rf7 {[%clk
0:00:06.9]} 25. Qc3 {[%clk 0:00:39.2]} 25... f4 {[%clk 0:00:03.3]} 26. exf4
{[%clk 0:00:36.4]} 26... exf4 {[%clk 0:00:03.4]} 27. Bf2 {[%clk 0:00:33.6]}
27... Re7 {[%clk 0:00:02.2]} 28. Qd3 {[%clk 0:00:27.7]} 1-0

[Event "*** SCC Grand Prix: Titled Tuesday Blitz"]
[Site "Chess.com"]
[Date "2020.10.06"]
[Round "6"]
[White "MusicCityMaster"]
[Black "Margarita2907"]
[Result "1-0"]
[WhiteElo "2312"]
[BlackElo "2190"]
[TimeControl "180+1"]
[EndTime "11:07:39 PDT"]
[Termination "MusicCityMaster won by resignation"]

1. d4 {[%clk 0:03:00.9]} 1... d5 {[%clk 0:02:59.5]} 2. c4 {[%clk 0:03:00.1]}
2... e6 {[%clk 0:02:59.1]} 3. Nc3 {[%clk 0:02:59.5]} 3... Nf6 {[%clk 0:02:58.8]}
4. cxd5 {[%clk 0:02:55.9]} 4... exd5 {[%clk 0:02:58]} 5. Bg5 {[%clk 0:02:55.5]}
5... Be7 {[%clk 0:02:57]} 6. Qc2 {[%clk 0:02:55.3]} 6... c6 {[%clk 0:02:56.4]}
7. e3 {[%clk 0:02:55.2]} 7... Nbd7 {[%clk 0:02:48.2]} 8. Bd3 {[%clk 0:02:55]}
8... O-O {[%clk 0:02:44.2]} 9. Nge2 {[%clk 0:02:53.9]} 9... h6 {[%clk 0:02:42]}
10. Bh4 {[%clk 0:02:52.7]} 10... Re8 {[%clk 0:02:37.9]} 11. O-O {[%clk
0:02:51.8]} 11... Ne4 {[%clk 0:02:35.6]} 12. Bxe7 {[%clk 0:02:49.3]} 12... Qxe7
{[%clk 0:02:36.5]} 13. Rae1 {[%clk 0:02:37.2]} 13... Ndf6 {[%clk 0:02:31.8]} 14.
f3 {[%clk 0:02:36.4]} 14... Nxc3 {[%clk 0:02:28.9]} 15. Nxc3 {[%clk 0:02:37.3]}
15... Qd6 {[%clk 0:02:18.6]} 16. Kh1 {[%clk 0:02:28.3]} 16... b6 {[%clk
0:02:05.7]} 17. Qd2 {[%clk 0:02:14.3]} 17... Bb7 {[%clk 0:01:59.4]} 18. Bb1
{[%clk 0:02:12.2]} 18... Rad8 {[%clk 0:01:47.3]} 19. Ne2 {[%clk 0:02:06.9]}
19... c5 {[%clk 0:01:42.9]} 20. Ng3 {[%clk 0:02:06.5]} 20... Ba6 {[%clk
0:01:23.6]} 21. Nf5 {[%clk 0:02:02.3]} 21... Qc6 {[%clk 0:01:16.5]} 22. Rf2
{[%clk 0:02:01.4]} 22... cxd4 {[%clk 0:01:02.7]} 23. Nxd4 {[%clk 0:01:59.3]}
23... Qd6 {[%clk 0:00:59.6]} 24. g4 {[%clk 0:01:51.7]} 24... Rc8 {[%clk
0:00:53]} 25. Rg2 {[%clk 0:01:46.7]} 25... Nd7 {[%clk 0:00:33.8]} 26. Qf2 {[%clk
0:01:24.3]} 26... Ne5 {[%clk 0:00:29.4]} 27. g5 {[%clk 0:01:24]} 27... hxg5
{[%clk 0:00:22.3]} 28. Rxg5 {[%clk 0:01:22.1]} 28... Bd3 {[%clk 0:00:20.1]} 29.
Qg3 {[%clk 0:01:16.4]} 29... g6 {[%clk 0:00:16.4]} 30. Bxd3 {[%clk 0:01:12.8]}
30... Nxd3 {[%clk 0:00:09.6]} 31. Qxd6 {[%clk 0:01:11.6]} 31... Nxe1 {[%clk
0:00:09.4]} 32. Rxg6+ {[%clk 0:01:03.8]} 32... fxg6 {[%clk 0:00:07.4]} 33. Qxg6+
{[%clk 0:01:04.6]} 33... Kh8 {[%clk 0:00:06.2]} 34. Nf5 {[%clk 0:01:01.7]} 34...
Rc7 {[%clk 0:00:01.9]} 35. Qxe8+ {[%clk 0:01:00.8]} 35... Kh7 {[%clk 0:00:02.4]}
36. Qh5+ {[%clk 0:00:57.8]} 36... Kg8 {[%clk 0:00:02.4]} 37. Qg6+ {[%clk
0:00:57.8]} 37... Kf8 {[%clk 0:00:02.7]} 38. Qd6+ {[%clk 0:00:57.2]} 38... Kg8
{[%clk 0:00:02.6]} 39. Qxc7 {[%clk 0:00:57.2]} 1-0

[Event "*** SCC Grand Prix: Titled Tuesday Blitz"]
[Site "Chess.com"]
[Date "2020.10.06"]
[Round "6"]
[White "icychess54"]
[Black "googlegoom"]
[Result "0-1"]
[WhiteElo "2257"]
[BlackElo "2420"]
[TimeControl "180+1"]
[EndTime "11:07:42 PDT"]
[Termination "googlegoom won on time"]

1. c4 {[%clk 0:03:00.9]} 1... c6 {[%clk 0:02:59.1]} 2. Nf3 {[%clk 0:03:00.1]}
2... d5 {[%clk 0:02:59.4]} 3. e3 {[%clk 0:02:59.7]} 3... Nf6 {[%clk 0:02:59.6]}
4. Nc3 {[%clk 0:03:00]} 4... e6 {[%clk 0:03:00.2]} 5. Be2 {[%clk 0:02:59.9]}
5... Nbd7 {[%clk 0:02:59.6]} 6. O-O {[%clk 0:03:00.3]} 6... Bd6 {[%clk
0:03:00.2]} 7. b3 {[%clk 0:03:00.6]} 7... O-O {[%clk 0:02:59.9]} 8. Bb2 {[%clk
0:03:01.1]} 8... b6 {[%clk 0:03:00.5]} 9. d4 {[%clk 0:03:01.4]} 9... Bb7 {[%clk
0:03:00.7]} 10. Rc1 {[%clk 0:03:00.4]} 10... Rc8 {[%clk 0:03:00]} 11. Bd3 {[%clk
0:03:00.4]} 11... c5 {[%clk 0:02:46.8]} 12. e4 {[%clk 0:02:51.6]} 12... dxe4
{[%clk 0:02:44.8]} 13. Nxe4 {[%clk 0:02:27.7]} 13... Bxe4 {[%clk 0:02:42.7]} 14.
Re1 {[%clk 0:01:59.5]} 14... Bxd3 {[%clk 0:02:38.6]} 15. Qxd3 {[%clk 0:02:00.4]}
15... cxd4 {[%clk 0:02:36.7]} 16. Qxd4 {[%clk 0:02:00.4]} 16... Bc5 {[%clk
0:02:33.4]} 17. Qh4 {[%clk 0:01:58.7]} 17... Qe7 {[%clk 0:02:32.2]} 18. Rcd1
{[%clk 0:01:44.6]} 18... Rfd8 {[%clk 0:02:31.8]} 19. Qg3 {[%clk 0:01:25.3]}
19... Nf8 {[%clk 0:02:27.9]} 20. h4 {[%clk 0:01:07.2]} 20... Rxd1 {[%clk
0:02:24.8]} 21. Rxd1 {[%clk 0:01:06.4]} 21... Ng6 {[%clk 0:02:24.3]} 22. Qg5
{[%clk 0:00:49.1]} 22... Bxf2+ {[%clk 0:02:02.4]} 23. Kh1 {[%clk 0:00:46.6]}
23... Bc5 {[%clk 0:02:01.9]} 24. h5 {[%clk 0:00:42.2]} 24... Nf8 {[%clk
0:02:01.6]} 25. h6 {[%clk 0:00:38.2]} 25... Ng6 {[%clk 0:01:40.4]} 26. hxg7
{[%clk 0:00:35.9]} 26... Ne4 {[%clk 0:01:37.8]} 27. Qxe7 {[%clk 0:00:19.4]}
27... Bxe7 {[%clk 0:01:35.2]} 28. Rd7 {[%clk 0:00:18.5]} 28... Bf6 {[%clk
0:01:35.3]} 29. Bxf6 {[%clk 0:00:15.7]} 29... Nxf6 {[%clk 0:01:35]} 30. Rxa7
{[%clk 0:00:16.6]} 30... Ng4 {[%clk 0:01:28.1]} 31. Ng5 {[%clk 0:00:15.3]} 31...
Rd8 {[%clk 0:01:26.4]} 32. g3 {[%clk 0:00:13]} 32... N6e5 {[%clk 0:01:11.4]} 33.
a4 {[%clk 0:00:09.4]} 33... Rd1+ {[%clk 0:00:48.6]} 34. Kg2 {[%clk 0:00:09.3]}
34... Rd2+ {[%clk 0:00:48.8]} 35. Kg1 {[%clk 0:00:06.4]} 35... Kxg7 {[%clk
0:00:48.6]} 36. Nxe6+ {[%clk 0:00:06]} 36... Kf6 {[%clk 0:00:49.1]} 37. Nf4
{[%clk 0:00:01.1]} 37... Nf3+ {[%clk 0:00:48]} 0-1

[Event "*** SCC Grand Prix: Titled Tuesday Blitz"]
[Site "Chess.com"]
[Date "2020.10.06"]
[Round "6"]
[White "MashaFromRussia"]
[Black "ThePatrick27"]
[Result "0-1"]
[WhiteElo "2406"]
[BlackElo "2553"]
[TimeControl "180+1"]
[EndTime "11:07:43 PDT"]
[Termination "ThePatrick27 won by resignation"]

1. d4 {[%clk 0:02:57.9]} 1... Nf6 {[%clk 0:03:00]} 2. c4 {[%clk 0:02:54.6]} 2...
g6 {[%clk 0:02:59.2]} 3. Nf3 {[%clk 0:02:54.6]} 3... Bg7 {[%clk 0:02:59.2]} 4.
g3 {[%clk 0:02:55.5]} 4... O-O {[%clk 0:02:59.3]} 5. Bg2 {[%clk 0:02:56]} 5...
d6 {[%clk 0:02:59.9]} 6. O-O {[%clk 0:02:55.8]} 6... Nc6 {[%clk 0:03:00.2]} 7.
Nc3 {[%clk 0:02:56.3]} 7... a6 {[%clk 0:02:59.5]} 8. e4 {[%clk 0:02:56.1]} 8...
Bd7 {[%clk 0:02:55.7]} 9. d5 {[%clk 0:02:55.6]} 9... Na5 {[%clk 0:02:48.7]} 10.
Qe2 {[%clk 0:02:54.1]} 10... c5 {[%clk 0:02:48.1]} 11. e5 {[%clk 0:02:54]} 11...
Ne8 {[%clk 0:02:39.1]} 12. Bf4 {[%clk 0:02:54.2]} 12... b5 {[%clk 0:02:20.9]}
13. cxb5 {[%clk 0:02:51.2]} 13... axb5 {[%clk 0:02:21.8]} 14. Nxb5 {[%clk
0:02:52.1]} 14... Qb6 {[%clk 0:02:21.4]} 15. a4 {[%clk 0:02:50.8]} 15... Nc7
{[%clk 0:02:19.4]} 16. Nxc7 {[%clk 0:02:38.3]} 16... Qxc7 {[%clk 0:02:18.7]} 17.
exd6 {[%clk 0:02:39.2]} 17... exd6 {[%clk 0:02:17]} 18. Qe7 {[%clk 0:02:39.7]}
18... Nc4 {[%clk 0:01:51.9]} 19. Bh3 {[%clk 0:02:36.9]} 19... Ra7 {[%clk
0:01:38.8]} 20. Rac1 {[%clk 0:02:31.5]} 20... Bxh3 {[%clk 0:01:35.5]} 21. Qxc7
{[%clk 0:02:19]} 21... Rxc7 {[%clk 0:01:36.4]} 22. Rxc4 {[%clk 0:02:15.9]} 22...
Bxf1 {[%clk 0:01:35.7]} 23. Kxf1 {[%clk 0:02:16.8]} 23... Rd8 {[%clk 0:01:34.5]}
24. b4 {[%clk 0:02:16.8]} 24... Rcc8 {[%clk 0:01:27.9]} 25. b5 {[%clk
0:02:13.7]} 25... Ra8 {[%clk 0:01:24.8]} 26. Ke2 {[%clk 0:02:05.5]} 26... Bf8
{[%clk 0:01:13.5]} 27. Kd3 {[%clk 0:02:03.2]} 27... f6 {[%clk 0:01:07]} 28. Nd2
{[%clk 0:02:01.7]} 28... Kf7 {[%clk 0:01:04.8]} 29. Ne4 {[%clk 0:01:57.8]} 29...
Ke7 {[%clk 0:00:59.1]} 30. h4 {[%clk 0:01:56.2]} 30... h6 {[%clk 0:00:58.7]} 31.
Bd2 {[%clk 0:01:38.8]} 31... Rdb8 {[%clk 0:00:50.9]} 32. g4 {[%clk 0:01:31.8]}
32... f5 {[%clk 0:00:45.9]} 33. Ng3 {[%clk 0:01:29.6]} 33... Kf6 {[%clk
0:00:44.5]} 34. Bc3+ {[%clk 0:01:26.6]} 34... Kf7 {[%clk 0:00:43]} 35. gxf5
{[%clk 0:01:26.4]} 35... gxf5 {[%clk 0:00:43.9]} 36. Nxf5 {[%clk 0:01:27.2]}
36... Kg6 {[%clk 0:00:40.1]} 37. Ng3 {[%clk 0:01:25.9]} 37... h5 {[%clk
0:00:40.5]} 38. Re4 {[%clk 0:01:22.6]} 38... Rb7 {[%clk 0:00:32.4]} 39. Re6+
{[%clk 0:01:19.1]} 39... Kf7 {[%clk 0:00:31.9]} 40. Rf6+ {[%clk 0:01:10.8]}
40... Kg8 {[%clk 0:00:30.9]} 41. Rf4 {[%clk 0:00:56.6]} 41... Bh6 {[%clk
0:00:26.3]} 42. Re4 {[%clk 0:00:55.3]} 42... Rf7 {[%clk 0:00:25.2]} 43. Nxh5
{[%clk 0:00:48.9]} 43... Rf3+ {[%clk 0:00:25.1]} 44. Kc4 {[%clk 0:00:47.7]}
44... Rxa4+ {[%clk 0:00:24]} 0-1

[Event "*** SCC Grand Prix: Titled Tuesday Blitz"]
[Site "Chess.com"]
[Date "2020.10.06"]
[Round "6"]
[White "shriyanasmallya"]
[Black "ChronicUnhappiness"]
[Result "0-1"]
[WhiteElo "1625"]
[BlackElo "2268"]
[TimeControl "180+1"]
[EndTime "11:07:43 PDT"]
[Termination "ChronicUnhappiness won by checkmate"]

1. e4 {[%clk 0:03:00.9]} 1... d6 {[%clk 0:02:59.5]} 2. d4 {[%clk 0:02:59.8]}
2... Nf6 {[%clk 0:03:00.4]} 3. Nc3 {[%clk 0:02:59.8]} 3... g6 {[%clk 0:03:00.8]}
4. Nf3 {[%clk 0:02:59.7]} 4... Bg7 {[%clk 0:03:01.1]} 5. Be3 {[%clk 0:02:59.4]}
5... O-O {[%clk 0:03:00.9]} 6. Bd3 {[%clk 0:02:59.8]} 6... Bg4 {[%clk
0:02:54.3]} 7. Qd2 {[%clk 0:02:59.7]} 7... Bxf3 {[%clk 0:02:43.3]} 8. gxf3
{[%clk 0:02:59.7]} 8... e5 {[%clk 0:02:38.7]} 9. dxe5 {[%clk 0:02:57.8]} 9...
dxe5 {[%clk 0:02:38.3]} 10. Bc5 {[%clk 0:02:57.5]} 10... Re8 {[%clk 0:02:37.2]}
11. O-O-O {[%clk 0:02:57.7]} 11... c6 {[%clk 0:02:06.7]} 12. f4 {[%clk
0:02:55.4]} 12... exf4 {[%clk 0:01:49.7]} 13. Qxf4 {[%clk 0:02:53]} 13... Nh5
{[%clk 0:01:48.3]} 14. Qe3 {[%clk 0:02:50]} 14... Nd7 {[%clk 0:01:45.7]} 15. Bc4
{[%clk 0:02:48.7]} 15... Qc7 {[%clk 0:01:10.5]} 16. Bd6 {[%clk 0:02:42.6]} 16...
Qb6 {[%clk 0:01:10.1]} 17. Qf3 {[%clk 0:02:32.9]} 17... Ne5 {[%clk 0:00:58.9]}
18. Bxe5 {[%clk 0:02:31.2]} 18... Rxe5 {[%clk 0:00:46.3]} 19. Qxf7+ {[%clk
0:02:28.6]} 19... Kh8 {[%clk 0:00:44.8]} 20. f4 {[%clk 0:02:25.4]} 20... Rf8
{[%clk 0:00:31.9]} 21. Qxf8+ {[%clk 0:02:16.3]} 21... Bxf8 {[%clk 0:00:32.8]}
22. fxe5 {[%clk 0:02:16.6]} 22... Bg7 {[%clk 0:00:18]} 23. e6 {[%clk 0:02:13.6]}
23... h6 {[%clk 0:00:10.3]} 24. e7 {[%clk 0:02:13.3]} 24... Nf6 {[%clk
0:00:09.3]} 25. Rd8+ {[%clk 0:02:11.3]} 25... Kh7 {[%clk 0:00:09.6]} 26. e8=Q
{[%clk 0:02:08.9]} 26... Nxe8 {[%clk 0:00:09.7]} 27. Rxe8 {[%clk 0:02:09.3]}
27... Qe3+ {[%clk 0:00:09.9]} 28. Kb1 {[%clk 0:02:08.7]} 28... b5 {[%clk
0:00:09.8]} 29. Bb3 {[%clk 0:02:08.3]} 29... h5 {[%clk 0:00:09]} 30. Bg8+ {[%clk
0:02:06.7]} 30... Kh6 {[%clk 0:00:07.2]} 31. Rc1 {[%clk 0:02:03.5]} 31... b4
{[%clk 0:00:06.7]} 32. Na4 {[%clk 0:02:01.9]} 32... Qd4 {[%clk 0:00:04.5]} 33.
c3 {[%clk 0:02:00]} 33... Qd3+ {[%clk 0:00:03.5]} 34. Ka1 {[%clk 0:01:59.4]}
34... bxc3 {[%clk 0:00:03.6]} 35. Nxc3 {[%clk 0:01:59.3]} 35... c5 {[%clk
0:00:02.4]} 36. Bb3 {[%clk 0:01:55.7]} 36... Qd2 {[%clk 0:00:02.2]} 37. Rd1
{[%clk 0:01:53.7]} 37... Qxh2 {[%clk 0:00:01.8]} 38. Red8 {[%clk 0:01:51.5]}
38... h4 {[%clk 0:00:02.3]} 39. R8d2 {[%clk 0:01:51]} 39... Qg3 {[%clk
0:00:02.4]} 40. Rc1 {[%clk 0:01:46.5]} 40... h3 {[%clk 0:00:02.3]} 41. Rdc2
{[%clk 0:01:45.8]} 41... Be5 {[%clk 0:00:02]} 42. Be6 {[%clk 0:01:44.9]} 42...
h2 {[%clk 0:00:02.9]} 43. Nd5 {[%clk 0:01:42.1]} 43... Qg1 {[%clk 0:00:02.8]}
44. Rxh2+ {[%clk 0:01:18.2]} 44... Qxh2 {[%clk 0:00:02.2]} 45. Bf5 {[%clk
0:01:15.2]} 45... Kg5 {[%clk 0:00:03.1]} 46. Bxg6 {[%clk 0:01:14.9]} 46... Qxb2#
{[%clk 0:00:03.1]} 0-1

[Event "*** SCC Grand Prix: Titled Tuesday Blitz"]
[Site "Chess.com"]
[Date "2020.10.06"]
[Round "6"]
[White "Harsha_Bharathakoti"]
[Black "Unkreativ3"]
[Result "1-0"]
[WhiteElo "2748"]
[BlackElo "2540"]
[TimeControl "180+1"]
[EndTime "11:07:44 PDT"]
[Termination "Harsha_Bharathakoti won by resignation"]

1. c4 {[%clk 0:02:58.4]} 1... c5 {[%clk 0:03:00.1]} 2. Nf3 {[%clk 0:02:53.2]}
2... g6 {[%clk 0:03:00.4]} 3. Nc3 {[%clk 0:02:52.6]} 3... Bg7 {[%clk 0:03:00.7]}
4. d4 {[%clk 0:02:53.5]} 4... cxd4 {[%clk 0:03:00.8]} 5. Nxd4 {[%clk 0:02:54.1]}
5... Nc6 {[%clk 0:03:01.6]} 6. Nc2 {[%clk 0:02:53.5]} 6... Nf6 {[%clk
0:03:01.6]} 7. g3 {[%clk 0:02:51.2]} 7... O-O {[%clk 0:03:00.7]} 8. Bg2 {[%clk
0:02:51.9]} 8... d6 {[%clk 0:03:00.7]} 9. O-O {[%clk 0:02:52]} 9... Rb8 {[%clk
0:03:00.3]} 10. b3 {[%clk 0:02:45.5]} 10... a6 {[%clk 0:03:00.2]} 11. Bb2 {[%clk
0:02:45.3]} 11... Bf5 {[%clk 0:02:57.8]} 12. Ne3 {[%clk 0:02:42.8]} 12... Be6
{[%clk 0:02:56.4]} 13. Rc1 {[%clk 0:02:35.8]} 13... Na7 {[%clk 0:02:54.9]} 14.
Qd4 {[%clk 0:02:28.9]} 14... Nc6 {[%clk 0:02:20.7]} 15. Qd2 {[%clk 0:02:17.5]}
15... Ne5 {[%clk 0:02:14.9]} 16. Ncd5 {[%clk 0:02:08.3]} 16... b5 {[%clk
0:02:05.7]} 17. c5 {[%clk 0:01:30.8]} 17... Nxd5 {[%clk 0:01:59.1]} 18. Nxd5
{[%clk 0:01:25]} 18... dxc5 {[%clk 0:01:50]} 19. Rxc5 {[%clk 0:01:25.6]} 19...
Qd6 {[%clk 0:01:35.4]} 20. Rc2 {[%clk 0:01:09.5]} 20... Rfd8 {[%clk 0:01:11.6]}
21. e4 {[%clk 0:00:54.7]} 21... Bg4 {[%clk 0:00:55.3]} 22. Qf4 {[%clk 0:00:50]}
22... Be6 {[%clk 0:00:22.1]} 23. Rd1 {[%clk 0:00:33.3]} 23... Bxd5 {[%clk
0:00:07.5]} 24. Rxd5 {[%clk 0:00:34.2]} 24... Qb6 {[%clk 0:00:05.7]} 25. Bxe5
{[%clk 0:00:32.1]} 25... Rxd5 {[%clk 0:00:05.8]} 26. exd5 {[%clk 0:00:30.9]}
26... Rd8 {[%clk 0:00:05.8]} 27. Bxg7 {[%clk 0:00:31]} 27... Kxg7 {[%clk
0:00:06.7]} 28. Qe5+ {[%clk 0:00:31.7]} 28... Kg8 {[%clk 0:00:05.9]} 29. Qxe7
{[%clk 0:00:31.1]} 29... Qb8 {[%clk 0:00:06.3]} 30. Rc7 {[%clk 0:00:30.3]} 1-0

[Event "*** SCC Grand Prix: Titled Tuesday Blitz"]
[Site "Chess.com"]
[Date "2020.10.06"]
[Round "6"]
[White "Stalri"]
[Black "profofchess"]
[Result "1-0"]
[WhiteElo "2157"]
[BlackElo "2375"]
[TimeControl "180+1"]
[EndTime "11:07:44 PDT"]
[Termination "Stalri won on time"]

1. d4 {[%clk 0:03:00.9]} 1... Nf6 {[%clk 0:02:59.6]} 2. c4 {[%clk 0:02:57.6]}
2... e6 {[%clk 0:02:59.9]} 3. Nc3 {[%clk 0:02:55]} 3... Bb4 {[%clk 0:02:59.6]}
4. e3 {[%clk 0:02:53.7]} 4... O-O {[%clk 0:02:58.7]} 5. Bd3 {[%clk 0:02:53.1]}
5... c5 {[%clk 0:02:55.4]} 6. Ne2 {[%clk 0:02:51.9]} 6... cxd4 {[%clk
0:02:52.3]} 7. exd4 {[%clk 0:02:51.4]} 7... Re8 {[%clk 0:02:52.8]} 8. Be3 {[%clk
0:02:47.4]} 8... d5 {[%clk 0:02:52]} 9. a3 {[%clk 0:02:41.1]} 9... Bf8 {[%clk
0:02:45.8]} 10. c5 {[%clk 0:02:36.2]} 10... Nc6 {[%clk 0:02:41.9]} 11. b4 {[%clk
0:02:33.6]} 11... e5 {[%clk 0:02:20.6]} 12. O-O {[%clk 0:02:30.4]} 12... e4
{[%clk 0:02:20.1]} 13. Bc2 {[%clk 0:02:28.1]} 13... Ng4 {[%clk 0:02:13.2]} 14.
Bb3 {[%clk 0:02:21.1]} 14... Be6 {[%clk 0:01:25.6]} 15. Nf4 {[%clk 0:02:19.2]}
15... Nxe3 {[%clk 0:01:20.9]} 16. fxe3 {[%clk 0:02:18.3]} 16... Ne7 {[%clk
0:01:21]} 17. Qh5 {[%clk 0:01:42.5]} 17... g6 {[%clk 0:01:17.4]} 18. Qg5 {[%clk
0:01:18.9]} 18... h6 {[%clk 0:01:08.5]} 19. Qe5 {[%clk 0:01:05.7]} 19... Nf5
{[%clk 0:00:44.6]} 20. Ncxd5 {[%clk 0:00:56.3]} 20... Bg7 {[%clk 0:00:24.3]} 21.
Nxe6 {[%clk 0:00:50.4]} 21... fxe6 {[%clk 0:00:18.1]} 22. Nf6+ {[%clk
0:00:39.2]} 22... Bxf6 {[%clk 0:00:13.7]} 23. Qxe4 {[%clk 0:00:39.8]} 23... Bg5
{[%clk 0:00:09.5]} 24. Bxe6+ {[%clk 0:00:34.3]} 24... Kg7 {[%clk 0:00:08.9]} 25.
Qxb7+ {[%clk 0:00:33.2]} 25... Re7 {[%clk 0:00:07.8]} 26. Qc6 {[%clk 0:00:23.9]}
26... Bxe3+ {[%clk 0:00:07.2]} 27. Kh1 {[%clk 0:00:23.7]} 27... Rc7 {[%clk
0:00:02]} 28. Qe4 {[%clk 0:00:23]} 28... Qxd4 {[%clk 0:00:01.3]} 29. Bxf5 {[%clk
0:00:22.2]} 1-0

[Event "*** SCC Grand Prix: Titled Tuesday Blitz"]
[Site "Chess.com"]
[Date "2020.10.06"]
[Round "6"]
[White "barriochess"]
[Black "IANOV0007"]
[Result "1-0"]
[WhiteElo "2316"]
[BlackElo "2420"]
[TimeControl "180+1"]
[EndTime "11:07:45 PDT"]
[Termination "barriochess won by resignation"]

1. d4 {[%clk 0:03:00.9]} 1... d6 {[%clk 0:02:59.1]} 2. e4 {[%clk 0:02:59.8]}
2... Nf6 {[%clk 0:02:59]} 3. Nc3 {[%clk 0:02:59.8]} 3... c6 {[%clk 0:02:58.9]}
4. f4 {[%clk 0:02:57.1]} 4... Qb6 {[%clk 0:02:58.2]} 5. a3 {[%clk 0:02:52.3]}
5... e5 {[%clk 0:02:55.3]} 6. Nf3 {[%clk 0:02:49.3]} 6... exd4 {[%clk
0:02:53.9]} 7. Nxd4 {[%clk 0:02:48.2]} 7... Nbd7 {[%clk 0:02:51.4]} 8. Bc4
{[%clk 0:02:40.5]} 8... g6 {[%clk 0:02:44.5]} 9. O-O {[%clk 0:02:36.4]} 9... Bg7
{[%clk 0:02:44.3]} 10. Kh1 {[%clk 0:02:36.3]} 10... O-O {[%clk 0:02:43.6]} 11.
Nb3 {[%clk 0:02:25.3]} 11... Qc7 {[%clk 0:02:39.3]} 12. a4 {[%clk 0:02:22.3]}
12... b6 {[%clk 0:02:38.4]} 13. Be3 {[%clk 0:02:17.5]} 13... Bb7 {[%clk
0:02:37.6]} 14. Qf3 {[%clk 0:02:10]} 14... a6 {[%clk 0:02:34.2]} 15. Qh3 {[%clk
0:01:56.2]} 15... b5 {[%clk 0:02:32.4]} 16. Bd3 {[%clk 0:01:54]} 16... b4 {[%clk
0:02:30]} 17. Ne2 {[%clk 0:01:52.3]} 17... c5 {[%clk 0:02:29.8]} 18. e5 {[%clk
0:01:39]} 18... dxe5 {[%clk 0:02:27.6]} 19. fxe5 {[%clk 0:01:39]} 19... Qxe5
{[%clk 0:02:26.8]} 20. Rae1 {[%clk 0:01:32.4]} 20... Rae8 {[%clk 0:02:21.7]} 21.
Nf4 {[%clk 0:01:29.5]} 21... Qc7 {[%clk 0:02:11.6]} 22. Bc4 {[%clk 0:01:27.6]}
22... Re4 {[%clk 0:02:00.2]} 23. Nd2 {[%clk 0:01:21.9]} 23... Re7 {[%clk
0:01:54.7]} 24. Bd3 {[%clk 0:00:59.4]} 24... Ne5 {[%clk 0:01:51.9]} 25. Be2
{[%clk 0:00:57.8]} 25... h5 {[%clk 0:01:44.5]} 26. Nc4 {[%clk 0:00:57.3]} 26...
Neg4 {[%clk 0:01:39.6]} 27. Bg1 {[%clk 0:00:54.7]} 27... Rfe8 {[%clk 0:01:39]}
28. Qg3 {[%clk 0:00:43]} 28... Ne4 {[%clk 0:01:37.7]} 29. Qh3 {[%clk 0:00:36.6]}
29... Qxf4 {[%clk 0:01:35.9]} 30. Rxf4 {[%clk 0:00:35.1]} 30... Ng5 {[%clk
0:01:32.3]} 31. Qd3 {[%clk 0:00:30.4]} 31... Be4 {[%clk 0:01:21.3]} 32. Qd1
{[%clk 0:00:29.7]} 32... Bf5 {[%clk 0:01:16.2]} 33. Bxc5 {[%clk 0:00:28.5]}
33... Rc7 {[%clk 0:01:14.9]} 34. Bxg4 {[%clk 0:00:27.8]} 34... Rxe1+ {[%clk
0:01:11.4]} 35. Qxe1 {[%clk 0:00:28.7]} 35... Bxg4 {[%clk 0:01:09.8]} 36. Bd6
{[%clk 0:00:26.9]} 36... Rc8 {[%clk 0:01:03.6]} 37. h3 {[%clk 0:00:26.4]} 37...
Be6 {[%clk 0:01:03]} 38. b3 {[%clk 0:00:26.4]} 38... Bc3 {[%clk 0:00:59.2]} 39.
Qe2 {[%clk 0:00:25.6]} 39... Rc6 {[%clk 0:00:58.5]} 40. Be5 {[%clk 0:00:25.7]}
40... Bxc4 {[%clk 0:00:56.2]} 41. Rxc4 {[%clk 0:00:24.3]} 41... Rxc4 {[%clk
0:00:46.4]} 42. bxc4 {[%clk 0:00:25.2]} 42... Ne6 {[%clk 0:00:46.3]} 43. Bxc3
{[%clk 0:00:25.1]} 43... bxc3 {[%clk 0:00:46.5]} 44. Qe3 {[%clk 0:00:26]} 44...
Ng7 {[%clk 0:00:40.5]} 45. Qxc3 {[%clk 0:00:26.9]} 45... Nf5 {[%clk 0:00:40.6]}
46. c5 {[%clk 0:00:27.8]} 1-0